fUST/lending_fUST_20250608
["ID","MTS","AMOUNT","RATE_DAILY","PERIOD"]
[365001820,1749390640926,-440.0,0.00019726,2]
[365001821,1749390640936,-1713.04,0.00019726,2]
[365001822,1749390640945,-1190.13,0.00019726,2]
[365001823,1749390640956,-1548.59,0.00019726,2]
[365001824,1749390640966,-440.0,0.00019726,2]
[365001825,1749390640975,-440.0,0.00019726,2]
[365001826,1749390640985,-440.0,0.00019726,2]
[365001827,1749390640994,-681.52,0.00019726,2]
[365001828,1749390641004,-440.0,0.00019726,2]
[365001829,1749390641013,-509.86,0.00019726,2]
[365001830,1749390641023,-474.13494132,0.00019726,2]
[365001831,1749390641032,-859.85,0.00019726,2]
[365001832,1749390641042,-440.0,0.00019726,2]
[365001833,1749390641051,-440.0,0.00019726,2]
[365001834,1749390641061,-537.64,0.00019726,2]
[365001835,1749390641070,-512.63,0.00019726,2]
[365001836,1749390641080,-500.57114652,0.00019746,2]
[365001837,1749390641090,-500.0,0.00019772,2]
[365001838,1749390641099,-501.37251406,0.00019772,2]
[365001839,1749390641108,-420.0,0.00019794,2]
[365001840,1749390641118,-500.0,0.00019804,2]
[365001841,1749390641128,-500.0,0.00019807,2]
[365001842,1749390641137,-1744.0,0.00019879,2]
[365001843,1749390641147,-1744.0,0.00019879,2]
[365001844,1749390641156,-1744.0,0.00019879,2]
[365001845,1749390641165,-1744.0,0.00019879,2]
[365001846,1749390641175,-154.1560932,0.00019879,2]
[365001847,1749390641184,-1744.0,0.00019879,2]
[365001848,1749390641194,-1744.0,0.00019879,2]
[365001849,1749390641204,-1744.0,0.00019879,2]
[365001850,1749390641214,-1744.0,0.00019879,2]
[365001851,1749390641224,-1744.0,0.00019879,2]
[365001852,1749390641233,-1744.0,0.00019879,2]
[365001853,1749390641242,-1744.0,0.00019879,2]
[365001854,1749390641252,-316.0,0.00019879,2]
[365001855,1749390641262,-1744.0,0.00019879,2]
[365001856,1749390641271,-1744.0,0.00019879,2]
[365001857,1749390641281,-316.0,0.00019879,2]
[365001858,1749390641290,-316.0,0.00019879,2]
[365001859,1749390641300,-1744.0,0.00019879,2]
[365001860,1749390641310,-321.92293093,0.00019879,2]
[365001861,1749390641320,-1744.0,0.00019879,2]
[365001862,1749390641329,-1744.0,0.00019879,2]
[365001863,1749390641339,-1744.0,0.00019879,2]
[365001864,1749390641349,-1744.0,0.00019879,2]
[365001865,1749390641358,-1744.0,0.00019879,2]
[365001866,1749390641368,-1744.0,0.00019879,2]
[365001867,1749390641377,-1744.0,0.00019879,2]
[365001868,1749390641387,-1744.0,0.00019879,2]
[365001869,1749390641397,-1680.0,0.00019891,2]
[365001870,1749390641407,-440.0,0.0002,2]
[365001871,1749390641418,-440.0,0.0002,2]
[365001872,1749390641428,-400.0,0.0002,2]
[365001873,1749390641437,-420.0,0.0002,2]
[365001874,1749390641449,-440.0,0.0002,2]
[365001875,1749390641458,-253.80503044,0.0002,2]
[365001876,1749390641468,-440.0,0.0002,2]
[365001877,1749390641477,-724.6,0.0002,2]
[365001878,1749390641487,-440.0,0.0002,2]
[365001879,1749390641497,-481.16,0.0002,2]
[365001880,1749390641507,-440.0,0.0002,2]
[365001881,1749390641517,-440.0,0.0002,2]
[365001882,1749390641528,-683.91,0.0002,2]
[365001883,1749390641537,-440.0,0.0002,2]
[365001884,1749390641547,-430.0,0.0002,2]
[365001885,1749390641556,-1243.53,0.0002,2]
[365001886,1749390641566,-1439.97,0.0002,2]
[365001887,1749390641576,-440.0,0.0002,2]
[365001888,1749390641586,-1694.59,0.0002,2]
[365001889,1749390641595,-479.02,0.0002,2]
[365001890,1749390641606,-440.0,0.0002,2]
[365001891,1749390641616,-440.0,0.0002,2]
[365001892,1749390641625,-440.0,0.0002,2]
[365001893,1749390641635,-440.0,0.0002,2]
[365001894,1749390641645,-440.0,0.0002,2]
[365001895,1749390641655,-1274.66,0.0002,2]
[365001896,1749390641665,-740.5,0.0002,2]
[365001897,1749390641675,-440.0,0.0002,2]
[365001898,1749390641685,-1713.04,0.0002,2]
[365001899,1749390641695,-1190.13,0.0002,2]
[365001900,1749390641706,-1548.59,0.0002,2]
[365001901,1749390641716,-440.0,0.0002,2]
[365001902,1749390641726,-163.52,0.0002,2]
[365001903,1749390641736,-440.0,0.0002,2]
[365001904,1749390641746,-681.52,0.0002,2]
[365001905,1749390641757,-440.0,0.0002,2]
[365001906,1749390641767,-509.86,0.0002,2]
[365001907,1749390641776,-859.85,0.0002,2]
[365001908,1749390641786,-440.0,0.0002,2]
[365001909,1749390641799,-440.0,0.0002,2]
[365001910,1749390641809,-537.64,0.0002,2]
[365001911,1749390641819,-512.63,0.0002,2]
[365001912,1749390641828,-150.2641347,0.00020155,2]
[365001913,1749390641838,-471.31545861,0.00020174,2]
[365001914,1749390641847,-1000.0,0.000202,2]
[365001915,1749390641857,-1000.0,0.00020202,2]
[365001916,1749390641868,-854.34,0.00020218,2]
[365001917,1749390641877,-213.05153702,0.00020248,2]
[365001918,1749390641886,-229.60437222,0.00020248,2]
[365001919,1749390641895,-160.0,0.00020248,2]
[365001920,1749390641905,-160.0,0.00020248,2]
[365001921,1749390641914,-842.5625,0.00020248,2]
[365001922,1749390641924,-160.0,0.00020248,2]
[365001923,1749390641933,-160.0,0.00020248,2]
[365001924,1749390641943,-423.98131849,0.00020248,2]
[365001925,1749390641954,-218.08,0.00020273,2]
[365001926,1749390641964,-440.0,0.00020273,2]
[365001927,1749390641973,-440.0,0.00020273,2]
[365001928,1749390641982,-440.0,0.00020273,2]
[365001929,1749390641992,-724.6,0.00020273,2]
[365001930,1749390642001,-440.0,0.00020273,2]
[365001931,1749390642011,-481.16,0.00020273,2]
[365001932,1749390642021,-440.0,0.00020273,2]
[365001933,1749390642030,-466.43,0.00020273,2]
[365001934,1749390642039,-683.91,0.00020273,2]
[365001935,1749390642049,-440.0,0.00020273,2]
[365001936,1749390642058,-1243.53,0.00020273,2]
[365001937,1749390642068,-1439.97,0.00020273,2]
[365001938,1749390642078,-440.0,0.00020273,2]
[365001939,1749390642087,-1694.59,0.00020273,2]
[365001940,1749390642097,-479.02,0.00020273,2]
[365001941,1749390642106,-440.0,0.00020273,2]
[365001942,1749390642115,-440.0,0.00020273,2]
[365001943,1749390642124,-440.0,0.00020273,2]
[365001944,1749390642133,-440.0,0.00020273,2]
[365001945,1749390642142,-440.0,0.00020273,2]
[365001946,1749390642151,-1274.66,0.00020273,2]
[365001947,1749390642161,-740.5,0.00020273,2]
[365001948,1749390642170,-440.0,0.00020273,2]
[365001949,1749390642179,-1713.04,0.00020273,2]
[365001950,1749390642188,-1190.13,0.00020273,2]
[365001951,1749390642197,-1548.59,0.00020273,2]
[365001952,1749390642208,-440.0,0.00020273,2]
[365001953,1749390642218,-440.0,0.00020273,2]
[365001954,1749390642227,-681.52,0.00020273,2]
[365001955,1749390642236,-440.0,0.00020273,2]
[365001956,1749390642246,-509.86,0.00020273,2]
[365001957,1749390642255,-859.85,0.00020273,2]
[365001958,1749390642265,-440.0,0.00020273,2]
[365001959,1749390642274,-440.0,0.00020273,2]
[365001960,1749390642283,-537.64,0.00020273,2]
[365001961,1749390642295,-512.63,0.00020273,2]
[365001962,1749390642305,-1000.0,0.00020355,2]
[365001963,1749390642316,-440.0,0.00020547,2]
[365001964,1749390642326,-440.0,0.00020547,2]
[365001965,1749390642336,-440.0,0.00020547,2]
[365001966,1749390642345,-724.6,0.00020547,2]
[365001967,1749390642355,-440.0,0.00020547,2]
[365001968,1749390642366,-481.16,0.00020547,2]
[365001969,1749390642375,-440.0,0.00020547,2]
[365001970,1749390642385,-683.91,0.00020547,2]
[365001971,1749390642395,-440.0,0.00020547,2]
[365001972,1749390642405,-1243.53,0.00020547,2]
[365001973,1749390642416,-1439.97,0.00020547,2]
[365001974,1749390642426,-440.0,0.00020547,2]
[365001975,1749390642435,-1694.59,0.00020547,2]
[365001976,1749390642445,-479.02,0.00020547,2]
[365001977,1749390642455,-440.0,0.00020547,2]
[365001978,1749390642465,-440.0,0.00020547,2]
[365001979,1749390642474,-440.0,0.00020547,2]
[365001980,1749390642484,-440.0,0.00020547,2]
[365001981,1749390642493,-185.06,0.00020547,2]
[365001982,1749390642503,-1274.66,0.00020547,2]
[365001983,1749390642513,-740.5,0.00020547,2]
[365001984,1749390642522,-440.0,0.00020547,2]
[365001985,1749390642534,-1713.04,0.00020547,2]
[365001986,1749390642549,-1190.13,0.00020547,2]
[365001987,1749390642560,-1548.59,0.00020547,2]
[365001988,1749390642570,-440.0,0.00020547,2]
[365001989,1749390642580,-440.0,0.00020547,2]
[365001990,1749390642590,-681.52,0.00020547,2]
[365001991,1749390642599,-440.0,0.00020547,2]
[365001992,1749390642608,-509.86,0.00020547,2]
[365001993,1749390642618,-859.85,0.00020547,2]
[365001994,1749390642628,-441.33810003,0.00020547,2]
[365001995,1749390642637,-286.24906719,0.00020547,2]
[365001996,1749390642647,-500.0,0.00020547,2]
[365001997,1749390642656,-537.64,0.00020547,2]
[365001998,1749390642667,-512.63,0.00020547,2]
[365001999,1749390642677,-151.0,0.00020548,2]
[365002000,1749390642686,-153.51933707,0.00020548,2]
[365002001,1749390642696,-151.0,0.00020548,2]
[365002002,1749390642706,-151.0,0.00020548,2]
[365002003,1749390642715,-151.0,0.00020548,2]
[365002004,1749390642725,-151.0,0.00020548,2]
[365002005,1749390642735,-151.0,0.00020548,2]
[365002006,1749390642745,-151.0,0.00020575,2]
[365002007,1749390642756,-151.0,0.00020575,2]
[365002008,1749390642767,-151.0,0.00020575,2]
[365002009,1749390642776,-198.0,0.00020603,2]
[365002010,1749390642785,-198.0,0.00020603,2]
[365002011,1749390642801,-198.0,0.00020603,2]
[365002012,1749390642810,-1500.0,0.00020748,2]
[365002013,1749390642820,-504.89682241,0.00020749,2]
[365002014,1749390642830,-370.03079413,0.00020821,2]
[365002015,1749390642842,-440.0,0.00020821,2]
[365002016,1749390642852,-440.0,0.00020821,2]
[365002017,1749390642861,-724.6,0.00020821,2]
[365002018,1749390642872,-440.0,0.00020821,2]
[365002019,1749390642883,-481.16,0.00020821,2]
[365002020,1749390642892,-440.0,0.00020821,2]
[365002022,1749390642902,-683.91,0.00020821,2]
[365002023,1749390642911,-440.0,0.00020821,2]
[365002024,1749390642921,-1243.53,0.00020821,2]
[365002025,1749390642931,-1439.97,0.00020821,2]
[365002026,1749390642940,-440.0,0.00020821,2]
[365002027,1749390642951,-1694.59,0.00020821,2]
[365002028,1749390642962,-479.02,0.00020821,2]
[365002029,1749390642973,-440.0,0.00020821,2]
[365002030,1749390642983,-440.0,0.00020821,2]
[365002031,1749390642993,-440.0,0.00020821,2]
[365002033,1749390643002,-440.0,0.00020821,2]
[365002035,1749390643012,-1274.66,0.00020821,2]
[365002036,1749390643022,-740.5,0.00020821,2]
[365002037,1749390643031,-440.0,0.00020821,2]
[365002038,1749390643041,-1713.04,0.00020821,2]
[365002039,1749390643050,-1190.13,0.00020821,2]
[365002040,1749390643060,-1548.59,0.00020821,2]
[365002041,1749390643069,-440.0,0.00020821,2]
[365002042,1749390643079,-440.0,0.00020821,2]
[365002043,1749390643089,-681.52,0.00020821,2]
[365002044,1749390643099,-440.0,0.00020821,2]
[365002045,1749390643108,-509.86,0.00020821,2]
[365002046,1749390643118,-859.85,0.00020821,2]
[365002047,1749390643128,-537.64,0.00020821,2]
[365002048,1749390643138,-512.63,0.00020821,2]
[365002049,1749390643149,-1200.0,0.00020882,2]
[365002050,1749390643158,-940.75061989,0.00020903,2]
[365002051,1749390643168,-471.31545861,0.00020996,2]
[365002052,1749390643178,-440.0,0.00021095,2]
[365002053,1749390643188,-440.0,0.00021095,2]
[365002054,1749390643200,-724.6,0.00021095,2]
[365002055,1749390643209,-440.0,0.00021095,2]
[365002056,1749390643219,-481.16,0.00021095,2]
[365002057,1749390643229,-360.77169749,0.00021095,2]
[365002058,1749390643239,-683.91,0.00021095,2]
[365002059,1749390643249,-440.0,0.00021095,2]
[365002060,1749390643258,-1243.53,0.00021095,2]
[365002061,1749390643371,-1439.97,0.00021095,2]
[365002062,1749390643382,-440.0,0.00021095,2]
[365002063,1749390643392,-1694.59,0.00021095,2]
[365002065,1749390643402,-479.02,0.00021095,2]
[365002067,1749390643412,-440.0,0.00021095,2]
[365002068,1749390643421,-440.0,0.00021095,2]
[365002069,1749390643431,-440.0,0.00021095,2]
[365002070,1749390643441,-440.0,0.00021095,2]
[365002071,1749390643452,-1274.66,0.00021095,2]
[365002072,1749390643461,-740.5,0.00021095,2]
[365002073,1749390643471,-440.0,0.00021095,2]
[365002074,1749390643480,-1713.04,0.00021095,2]
[365002075,1749390643490,-1190.13,0.00021095,2]
[365002076,1749390643499,-1548.59,0.00021095,2]
[365002077,1749390643509,-440.0,0.00021095,2]
[365002078,1749390643519,-440.0,0.00021095,2]
[365002079,1749390643528,-681.52,0.00021095,2]
[365002080,1749390643538,-440.0,0.00021095,2]
[365002081,1749390643548,-509.86,0.00021095,2]
[365002082,1749390643558,-859.85,0.00021095,2]
[365002083,1749390643567,-500.0,0.00021095,3]
[365002084,1749390643577,-537.64,0.00021095,2]
[365002085,1749390643587,-512.63,0.00021095,2]
[365002086,1749390643597,-1139.12,0.00021097,2]
[365002087,1749390643606,-2000.0,0.00021296,2]
[365002088,1749390643616,-440.0,0.00021369,2]
[365002089,1749390643626,-440.0,0.00021369,2]
[365002090,1749390643636,-724.6,0.00021369,2]
[365002091,1749390643645,-440.0,0.00021369,2]
[365002092,1749390643656,-481.16,0.00021369,2]
[365002093,1749390643665,-683.91,0.00021369,2]
[365002094,1749390643675,-440.0,0.00021369,2]
[365002096,1749390643684,-1243.53,0.00021369,2]
[365002097,1749390643694,-1439.97,0.00021369,2]
[365002098,1749390643704,-440.0,0.00021369,2]
[365002099,1749390643714,-1694.59,0.00021369,2]
[365002100,1749390643723,-479.02,0.00021369,2]
[365002101,1749390643733,-440.0,0.00021369,2]
[365002102,1749390643743,-440.0,0.00021369,2]
[365002103,1749390643752,-440.0,0.00021369,2]
[365002104,1749390643762,-440.0,0.00021369,2]
[365002105,1749390643771,-1274.66,0.00021369,2]
[365002106,1749390643781,-740.5,0.00021369,2]
[365002107,1749390643793,-440.0,0.00021369,2]
[365002108,1749390643802,-1713.04,0.00021369,2]
[365002109,1749390643812,-1190.13,0.00021369,2]
[365002110,1749390643821,-1548.59,0.00021369,2]
[365002111,1749390643831,-440.0,0.00021369,2]
[365002112,1749390643840,-440.0,0.00021369,2]
[365002113,1749390643849,-681.52,0.00021369,2]
[365002114,1749390643859,-307.69989397,0.00021369,2]
[365002115,1749390643868,-509.86,0.00021369,2]
[365002116,1749390643879,-859.85,0.00021369,2]
[365002117,1749390643888,-537.64,0.00021369,2]
[365002118,1749390643897,-512.63,0.00021369,2]
[365002119,1749390643906,-287.0,0.00021594,2]
[365002120,1749390643917,-440.0,0.00021643,2]
[365002121,1749390643927,-440.0,0.00021643,2]
[365002122,1749390643937,-724.6,0.00021643,2]
[365002123,1749390643949,-440.0,0.00021643,2]
[365002124,1749390643959,-481.16,0.00021643,2]
[365002125,1749390643968,-683.91,0.00021643,2]
[365002126,1749390643977,-440.0,0.00021643,2]
[365002127,1749390643987,-1243.53,0.00021643,2]
[365002128,1749390643996,-1439.97,0.00021643,2]
[365002129,1749390644006,-440.0,0.00021643,2]
[365002130,1749390644016,-1694.59,0.00021643,2]
[365002131,1749390644028,-479.02,0.00021643,2]
[365002132,1749390644037,-165.8571306,0.00021643,2]
[365002133,1749390644047,-440.0,0.00021643,2]
[365002134,1749390644058,-440.0,0.00021643,2]
[365002135,1749390644068,-440.0,0.00021643,2]
[365002136,1749390644077,-1274.66,0.00021643,2]
[365002137,1749390644087,-740.5,0.00021643,2]
[365002138,1749390644097,-440.0,0.00021643,2]
[365002139,1749390644106,-1713.04,0.00021643,2]
[365002140,1749390644118,-1190.13,0.00021643,2]
[365002141,1749390644128,-1548.59,0.00021643,2]
[365002142,1749390644139,-440.0,0.00021643,2]
[365002143,1749390644149,-440.0,0.00021643,2]
[365002144,1749390644159,-681.52,0.00021643,2]
[365002145,1749390644170,-509.86,0.00021643,2]
[365002146,1749390644180,-859.85,0.00021643,2]
[365002147,1749390644189,-500.0,0.00021643,4]
[365002148,1749390644199,-537.64,0.00021643,2]
[365002149,1749390644209,-512.63,0.00021643,2]
[365002150,1749390644218,-500.0,0.000217,2]
[365002151,1749390644228,-500.0,0.000217,2]
[365002152,1749390644238,-500.0,0.000217,2]
[365002153,1749390644248,-471.31545861,0.00021817,2]
[365002154,1749390644257,-810.000001,0.0002188,2]
[365002155,1749390644267,-440.0,0.00021917,2]
[365002156,1749390644276,-440.0,0.00021917,2]
[365002157,1749390644286,-724.6,0.00021917,2]
[365002158,1749390644296,-440.0,0.00021917,2]
[365002159,1749390644305,-440.0,0.00021917,2]
[365002160,1749390644315,-481.16,0.00021917,2]
[365002161,1749390644324,-683.91,0.00021917,2]
[365002162,1749390644334,-440.0,0.00021917,2]
[365002163,1749390644343,-1243.53,0.00021917,2]
[365002164,1749390644351,-1439.97,0.00021917,2]
[365002165,1749390644360,-440.0,0.00021917,2]
[365002166,1749390644370,-1694.59,0.00021917,2]
[365002167,1749390644380,-479.02,0.00021917,2]
[365002168,1749390644389,-440.0,0.00021917,2]
[365002169,1749390644399,-440.0,0.00021917,2]
[365002170,1749390644408,-440.0,0.00021917,2]
[365002171,1749390644418,-500.0,0.00021917,2]
[365002172,1749390644428,-1274.66,0.00021917,2]
[365002173,1749390644438,-740.5,0.00021917,2]
[365002174,1749390644447,-440.0,0.00021917,2]
[365002175,1749390644459,-1713.04,0.00021917,2]
[365002176,1749390644469,-1190.13,0.00021917,2]
[365002177,1749390644478,-1548.59,0.00021917,2]
[365002178,1749390644488,-440.0,0.00021917,2]
[365002179,1749390644497,-440.0,0.00021917,2]
[365002180,1749390644507,-681.52,0.00021917,2]
[365002181,1749390644516,-509.86,0.00021917,2]
[365002182,1749390644526,-859.85,0.00021917,2]
[365002183,1749390644536,-537.64,0.00021917,2]
[365002184,1749390644546,-512.63,0.00021917,2]
[365002185,1749390644556,-162.6907512,0.00021918,2]
[365002186,1749390644566,-1423.9,0.00021976,2]
[365002187,1749390644575,-1200.0,0.00021978,2]
[365002188,1749390644585,-100000.0,0.0002199,2]
[365002189,1749390644595,-207.4,0.00022009,2]
[365002190,1749390644605,-500.0,0.00022009,2]
[365002191,1749390644615,-500.0,0.00022009,2]
[365002192,1749390644625,-5000.0,0.00022009,2]
[365002193,1749390644635,-500.0,0.00022009,2]
[365002194,1749390644646,-500.0,0.00022009,2]
[365002195,1749390644656,-500.0,0.00022009,2]
[365002196,1749390644666,-500.0,0.00022009,2]
[365002197,1749390644676,-500.0,0.00022009,2]
[365002198,1749390644686,-500.0,0.00022009,2]
[365002199,1749390644696,-537.62751885,0.00022009,2]
[365002200,1749390644708,-440.0,0.00022191,4]
[365002201,1749390644718,-440.0,0.00022191,4]
[365002202,1749390644728,-724.6,0.00022191,4]
[365002203,1749390644738,-440.0,0.00022191,4]
[365002204,1749390644748,-481.16,0.00022191,4]
[365002205,1749390644757,-683.91,0.00022191,4]
[365002206,1749390644768,-312.14914198,0.00022191,2]
[365002207,1749390644778,-1243.53,0.00022191,4]
[365002208,1749390644789,-1439.97,0.00022191,4]
[365002209,1749390644801,-440.0,0.00022191,4]
[365002210,1749390644811,-1694.59,0.00022191,4]
[365002211,1749390644820,-479.02,0.00022191,4]
[365002212,1749390644831,-440.0,0.00022191,4]
[365002213,1749390644841,-440.0,0.00022191,4]
[365002214,1749390644851,-440.0,0.00022191,4]
[365002215,1749390644862,-1274.66,0.00022191,4]
[365002216,1749390644873,-740.5,0.00022191,4]
[365002217,1749390644883,-440.0,0.00022191,4]
[365002218,1749390644893,-1713.04,0.00022191,4]
[365002219,1749390644903,-1190.13,0.00022191,4]
[365002220,1749390644913,-1548.59,0.00022191,4]
[365002221,1749390644923,-440.0,0.00022191,4]
[365002222,1749390644932,-440.0,0.00022191,4]
[365002223,1749390644941,-681.52,0.00022191,4]
[365002224,1749390644953,-509.86,0.00022191,4]
[365002225,1749390644963,-859.85,0.00022191,4]
[365002226,1749390644973,-500.0,0.00022191,5]
[365002227,1749390644982,-537.64,0.00022191,4]
[365002228,1749390644992,-512.63,0.00022191,4]
[365002229,1749390645002,-160.79707341,0.000222,69]
[365002230,1749390645012,-440.0,0.00022465,4]
[365002231,1749390645022,-724.6,0.00022465,4]
[365002232,1749390645031,-440.0,0.00022465,4]
[365002233,1749390645041,-481.16,0.00022465,4]
[365002234,1749390645051,-683.91,0.00022465,4]
[365002235,1749390645061,-1243.53,0.00022465,4]
[365002236,1749390645070,-1439.97,0.00022465,4]
[365002237,1749390645079,-440.0,0.00022465,4]
[365002238,1749390645089,-1694.59,0.00022465,4]
[365002239,1749390645099,-479.02,0.00022465,4]
[365002240,1749390645109,-440.0,0.00022465,4]
[365002241,1749390645118,-440.0,0.00022465,4]
[365002242,1749390645127,-440.0,0.00022465,4]
[365002243,1749390645138,-1274.66,0.00022465,4]
[365002244,1749390645147,-740.5,0.00022465,4]
[365002245,1749390645157,-440.0,0.00022465,4]
[365002246,1749390645167,-1713.04,0.00022465,4]
[365002247,1749390645177,-1190.13,0.00022465,4]
[365002248,1749390645188,-1548.59,0.00022465,4]
[365002249,1749390645198,-440.0,0.00022465,4]
[365002250,1749390645209,-440.0,0.00022465,4]
[365002251,1749390645218,-681.52,0.00022465,4]
[365002252,1749390645228,-509.86,0.00022465,4]
[365002253,1749390645238,-859.85,0.00022465,4]
[365002254,1749390645248,-537.64,0.00022465,4]
[365002255,1749390645258,-512.63,0.00022465,4]
[365002256,1749390645267,-5000.0,0.00022557,2]
[365002257,1749390645277,-471.31545861,0.00022639,2]
[365002258,1749390645287,-77643.37,0.000227,7]
[365002259,1749390645296,-814.09,0.000227,7]
[365002260,1749390645307,-1629.48,0.000227,7]
[365002261,1749390645317,-440.0,0.00022739,4]
[365002262,1749390645327,-724.6,0.00022739,4]
[365002263,1749390645337,-440.0,0.00022739,4]
[365002264,1749390645347,-481.16,0.00022739,4]
[365002265,1749390645357,-683.91,0.00022739,4]
[365002266,1749390645367,-1243.53,0.00022739,4]
[365002267,1749390645376,-1439.97,0.00022739,4]
[365002268,1749390645386,-440.0,0.00022739,4]
[365002269,1749390645395,-1694.59,0.00022739,4]
[365002270,1749390645406,-479.02,0.00022739,4]
[365002271,1749390645416,-440.0,0.00022739,4]
[365002272,1749390645425,-440.0,0.00022739,4]
[365002273,1749390645436,-440.0,0.00022739,4]
[365002274,1749390645446,-1274.66,0.00022739,4]
[365002275,1749390645457,-740.5,0.00022739,4]
[365002276,1749390645467,-440.0,0.00022739,4]
[365002277,1749390645477,-1713.04,0.00022739,4]
[365002278,1749390645488,-1190.13,0.00022739,4]
[365002279,1749390645498,-1548.59,0.00022739,4]
[365002280,1749390645508,-440.0,0.00022739,4]
[365002281,1749390645518,-440.0,0.00022739,4]
[365002282,1749390645528,-681.52,0.00022739,4]
[365002283,1749390645538,-509.86,0.00022739,4]
[365002284,1749390645548,-859.85,0.00022739,4]
[365002285,1749390645557,-500.0,0.00022739,6]
[365002286,1749390645567,-537.64,0.00022739,4]
[365002287,1749390645576,-512.63,0.00022739,4]
[365002288,1749390645586,-1708.68,0.00022855,2]
[365002289,1749390645596,-628.35048716,0.000229,2]
[365002290,1749390645606,-311.4322408,0.00022959,2]
[365002291,1749390645616,-176.6779968,0.00022986,2]
[365002292,1749390645626,-500.0,0.00023,2]
[365002293,1749390645636,-2000.0,0.00023,2]
[365002294,1749390645646,-584.99876526,0.00023013,4]
[365002295,1749390645656,-724.6,0.00023013,4]
[365002296,1749390645666,-550.69,0.00023013,4]
[365002297,1749390645677,-481.16,0.00023013,4]
[365002298,1749390645687,-683.91,0.00023013,4]
[365002299,1749390645696,-1243.53,0.00023013,4]
[365002300,1749390645707,-1439.97,0.00023013,4]
[365002301,1749390645717,-464.4274694,0.00023013,4]
[365002302,1749390645727,-1694.59,0.00023013,4]
[365002303,1749390645738,-479.02,0.00023013,4]
[365002304,1749390645747,-440.0,0.00023013,4]
[365002305,1749390645757,-440.0,0.00023013,4]
[365002306,1749390645768,-440.0,0.00023013,4]
[365002307,1749390645778,-1274.66,0.00023013,4]
[365002308,1749390645790,-740.5,0.00023013,4]
[365002309,1749390645800,-440.0,0.00023013,4]
[365002310,1749390645810,-1713.04,0.00023013,4]
[365002311,1749390645820,-1190.13,0.00023013,4]
[365002312,1749390645830,-1548.59,0.00023013,4]
[365002313,1749390645840,-440.0,0.00023013,4]
[365002314,1749390645850,-440.0,0.00023013,4]
[365002315,1749390645860,-681.52,0.00023013,4]
[365002316,1749390645870,-509.86,0.00023013,4]
[365002317,1749390645880,-859.85,0.00023013,4]
[365002318,1749390645890,-537.64,0.00023013,4]
[365002319,1749390645899,-1200.0,0.00023074,2]
[365002320,1749390645908,-5000.0,0.00023105,2]
[365002321,1749390645917,-724.6,0.00023287,4]
[365002322,1749390645927,-481.16,0.00023287,4]
[365002323,1749390645935,-683.91,0.00023287,4]
[365002325,1749390645945,-1243.53,0.00023287,4]
[365002327,1749390645955,-1439.97,0.00023287,4]